[Event "*** SCC Grand Prix: Titled Tuesday Blitz"]
[Site "Chess.com"]
[Date "2020.06.23"]
[Round "2"]
[White "QuintilianoR"]
[Black "esrosenberg"]
[Result "1-0"]
[WhiteElo "2621"]
[BlackElo "2125"]
[TimeControl "180+1"]
[EndTime "10:19:45 PDT"]
[Termination "QuintilianoR won by checkmate"]

1. e4 {[%clk 0:03:00.9]} 1... e5 {[%clk 0:02:59.9]} 2. Nf3 {[%clk 0:03:00.5]}
2... Nc6 {[%clk 0:02:59.7]} 3. Bc4 {[%clk 0:03:00.7]} 3... Nf6 {[%clk
0:02:59.7]} 4. d3 {[%clk 0:03:01]} 4... Bc5 {[%clk 0:02:59.6]} 5. O-O {[%clk
0:03:01.1]} 5... a6 {[%clk 0:03:00]} 6. h3 {[%clk 0:03:00.2]} 6... d6 {[%clk
0:02:59.4]} 7. a4 {[%clk 0:02:59]} 7... Ba7 {[%clk 0:02:59.3]} 8. c3 {[%clk
0:02:55.5]} 8... h6 {[%clk 0:02:56.7]} 9. Re1 {[%clk 0:02:53.7]} 9... O-O {[%clk
0:02:55.9]} 10. Nbd2 {[%clk 0:02:52.2]} 10... Be6 {[%clk 0:02:50.7]} 11. Bxe6
{[%clk 0:02:50.5]} 11... fxe6 {[%clk 0:02:50.9]} 12. Nf1 {[%clk 0:02:51.1]}
12... Nh5 {[%clk 0:02:41]} 13. Be3 {[%clk 0:02:50.3]} 13... Nf4 {[%clk
0:02:38.4]} 14. Bxa7 {[%clk 0:02:47.5]} 14... Rxa7 {[%clk 0:02:37.1]} 15. Kh2
{[%clk 0:02:47]} 15... Qf6 {[%clk 0:02:26.1]} 16. b4 {[%clk 0:02:25]} 16... Ne7
{[%clk 0:01:43.1]} 17. Ra2 {[%clk 0:02:22.5]} 17... Neg6 {[%clk 0:01:42.6]} 18.
Ng1 {[%clk 0:02:19.4]} 18... Qg5 {[%clk 0:01:23.8]} 19. g3 {[%clk 0:01:51.9]}
19... Nh5 {[%clk 0:00:52.8]} 20. Qg4 {[%clk 0:01:20.3]} 20... Qxg4 {[%clk
0:00:36.4]} 21. hxg4 {[%clk 0:01:21.2]} 21... Nf6 {[%clk 0:00:37.2]} 22. Ne3
{[%clk 0:01:19.5]} 22... a5 {[%clk 0:00:35.7]} 23. b5 {[%clk 0:01:16.2]} 23...
b6 {[%clk 0:00:33.2]} 24. f3 {[%clk 0:01:11.9]} 24... Raa8 {[%clk 0:00:32.7]}
25. Kg2 {[%clk 0:01:10.9]} 25... Nd7 {[%clk 0:00:32.4]} 26. d4 {[%clk
0:01:05.7]} 26... exd4 {[%clk 0:00:31.5]} 27. cxd4 {[%clk 0:01:06.6]} 27... e5
{[%clk 0:00:29.9]} 28. Ne2 {[%clk 0:01:03.6]} 28... exd4 {[%clk 0:00:29.8]} 29.
Nxd4 {[%clk 0:01:03.5]} 29... Nc5 {[%clk 0:00:27.1]} 30. Nd5 {[%clk 0:01:03.2]}
30... Rf7 {[%clk 0:00:22.4]} 31. Re3 {[%clk 0:00:53.5]} 31... Ne5 {[%clk
0:00:21.9]} 32. Rc3 {[%clk 0:00:45.7]} 32... Raf8 {[%clk 0:00:20.3]} 33. Raa3
{[%clk 0:00:39.1]} 33... Kh7 {[%clk 0:00:19.1]} 34. Kh3 {[%clk 0:00:31.9]} 34...
g6 {[%clk 0:00:17.1]} 35. f4 {[%clk 0:00:25.7]} 35... Nxe4 {[%clk 0:00:07.9]}
36. fxe5 {[%clk 0:00:24.5]} 36... dxe5 {[%clk 0:00:06.3]} 37. Ne6 {[%clk
0:00:23.5]} 37... Re8 {[%clk 0:00:05]} 38. Rxc7 {[%clk 0:00:22.1]} 38... Rxc7
{[%clk 0:00:02.6]} 39. Ndxc7 {[%clk 0:00:23]} 39... Rc8 {[%clk 0:00:01.1]} 40.
Re3 {[%clk 0:00:20.5]} 40... Nf2+ {[%clk 0:00:01.5]} 41. Kg2 {[%clk 0:00:20.1]}
41... Nxg4 {[%clk 0:00:02.4]} 42. Re4 {[%clk 0:00:20.5]} 42... Nf6 {[%clk
0:00:02.3]} 43. Rxe5 {[%clk 0:00:20.9]} 43... Nd7 {[%clk 0:00:02.4]} 44. Rd5
{[%clk 0:00:20.8]} 44... Nc5 {[%clk 0:00:03.3]} 45. Nxc5 {[%clk 0:00:20.5]}
45... bxc5 {[%clk 0:00:03.5]} 46. b6 {[%clk 0:00:20.1]} 46... Rb8 {[%clk
0:00:03.7]} 47. Rd7+ {[%clk 0:00:20.4]} 47... Kh8 {[%clk 0:00:04]} 48. Nd5
{[%clk 0:00:21]} 48... Rxb6 {[%clk 0:00:03.2]} 49. Nxb6 {[%clk 0:00:20.7]} 49...
c4 {[%clk 0:00:04.1]} 50. Nxc4 {[%clk 0:00:21.2]} 50... Kg8 {[%clk 0:00:04.3]}
51. Nd6 {[%clk 0:00:22.1]} 51... Kf8 {[%clk 0:00:05.2]} 52. Nc4 {[%clk
0:00:22.7]} 52... Ke8 {[%clk 0:00:05.6]} 53. Rh7 {[%clk 0:00:23.6]} 53... h5
{[%clk 0:00:05.9]} 54. Rh6 {[%clk 0:00:23.8]} 54... Kf7 {[%clk 0:00:06.2]} 55.
Rh7+ {[%clk 0:00:24.2]} 55... Kf6 {[%clk 0:00:05.8]} 56. Ra7 {[%clk 0:00:25.1]}
56... Ke6 {[%clk 0:00:04.7]} 57. Rxa5 {[%clk 0:00:26]} 57... Kf6 {[%clk
0:00:04.8]} 58. Ne3 {[%clk 0:00:25.9]} 58... Ke6 {[%clk 0:00:04.9]} 59. Rb5
{[%clk 0:00:26.8]} 59... Kd6 {[%clk 0:00:05.2]} 60. Nc4+ {[%clk 0:00:27.6]}
60... Kc6 {[%clk 0:00:06.1]} 61. Rg5 {[%clk 0:00:27.7]} 61... Kb7 {[%clk
0:00:05.6]} 62. a5 {[%clk 0:00:27.7]} 62... Ka7 {[%clk 0:00:05.9]} 63. Rxg6
{[%clk 0:00:27]} 63... Ka8 {[%clk 0:00:06.2]} 64. Rg7 {[%clk 0:00:26]} 64... h4
{[%clk 0:00:06.5]} 65. a6 {[%clk 0:00:25.5]} 65... hxg3 {[%clk 0:00:06.5]} 66.
Nb6+ {[%clk 0:00:25.3]} 66... Kb8 {[%clk 0:00:06.6]} 67. Rb7# {[%clk 0:00:26.2]}
1-0

[Event "*** SCC Grand Prix: Titled Tuesday Blitz"]
[Site "Chess.com"]
[Date "2020.06.23"]
[Round "2"]
[White "FMJoseHerrera"]
[Black "Anton_Demchenko"]
[Result "1-0"]
[WhiteElo "2568"]
[BlackElo "2840"]
[TimeControl "180+1"]
[EndTime "10:19:46 PDT"]
[Termination "FMJoseHerrera won by resignation"]

1. Nf3 {[%clk 0:03:00.9]} 1... Nf6 {[%clk 0:02:57]} 2. g3 {[%clk 0:03:00]} 2...
g6 {[%clk 0:02:56.1]} 3. Bg2 {[%clk 0:03:00]} 3... Bg7 {[%clk 0:02:57]} 4. d3
{[%clk 0:03:00.9]} 4... O-O {[%clk 0:02:57.9]} 5. Nc3 {[%clk 0:03:00.3]} 5... b6
{[%clk 0:02:50.5]} 6. h4 {[%clk 0:03:00.3]} 6... Bb7 {[%clk 0:02:48.6]} 7. e4
{[%clk 0:02:56.6]} 7... h5 {[%clk 0:02:16.4]} 8. Bg5 {[%clk 0:02:53.6]} 8... d6
{[%clk 0:02:04.6]} 9. Qd2 {[%clk 0:02:53]} 9... Re8 {[%clk 0:02:01.8]} 10. Bh6
{[%clk 0:02:45.5]} 10... Bh8 {[%clk 0:02:00.5]} 11. O-O {[%clk 0:02:27.1]} 11...
Nbd7 {[%clk 0:01:55.8]} 12. Rae1 {[%clk 0:02:24]} 12... c5 {[%clk 0:01:51.5]}
13. d4 {[%clk 0:02:15.7]} 13... cxd4 {[%clk 0:01:45]} 14. Nxd4 {[%clk
0:02:16.6]} 14... Rb8 {[%clk 0:01:35.6]} 15. Bg5 {[%clk 0:01:54]} 15... a6
{[%clk 0:01:30.8]} 16. f4 {[%clk 0:01:46.9]} 16... e5 {[%clk 0:00:42.5]} 17. Nb3
{[%clk 0:01:34.1]} 17... exf4 {[%clk 0:00:38.8]} 18. gxf4 {[%clk 0:01:22.5]}
18... Qc7 {[%clk 0:00:37.7]} 19. f5 {[%clk 0:01:17.8]} 19... Re5 {[%clk
0:00:23]} 20. fxg6 {[%clk 0:01:13.4]} 20... fxg6 {[%clk 0:00:23.9]} 21. Bf4
{[%clk 0:01:10.6]} 21... Rf8 {[%clk 0:00:23.6]} 22. Bxe5 {[%clk 0:01:07.9]}
22... Nxe5 {[%clk 0:00:24.5]} 23. Qg5 {[%clk 0:01:04.2]} 23... Kh7 {[%clk
0:00:23.1]} 24. Kh1 {[%clk 0:01:02.3]} 24... Bg7 {[%clk 0:00:23.1]} 25. Nd4
{[%clk 0:00:56.4]} 25... Re8 {[%clk 0:00:22.9]} 26. Rxf6 {[%clk 0:00:54.3]}
26... Bxf6 {[%clk 0:00:15.1]} 27. Qxf6 {[%clk 0:00:55.2]} 27... Ng4 {[%clk
0:00:16]} 28. Qg5 {[%clk 0:00:48.8]} 28... d5 {[%clk 0:00:11.2]} 29. e5 {[%clk
0:00:29.8]} 29... Rxe5 {[%clk 0:00:10.1]} 30. Rxe5 {[%clk 0:00:29.6]} 30... Nxe5
{[%clk 0:00:11]} 31. Ne6 {[%clk 0:00:28.9]} 31... Qd6 {[%clk 0:00:09.8]} 32.
Nf8+ {[%clk 0:00:25.7]} 32... Kg7 {[%clk 0:00:10.3]} 33. Qf4 {[%clk 0:00:21.4]}
33... Qe7 {[%clk 0:00:07.6]} 34. Nd7 {[%clk 0:00:20.6]} 34... Nxd7 {[%clk
0:00:05.5]} 35. Nxd5 {[%clk 0:00:21]} 35... Bxd5 {[%clk 0:00:04.9]} 36. Bxd5
{[%clk 0:00:21.9]} 36... Qe1+ {[%clk 0:00:04.9]} 37. Kg2 {[%clk 0:00:22.6]}
37... Ne5 {[%clk 0:00:04.9]} 38. Bf3 {[%clk 0:00:20.6]} 38... Nxf3 {[%clk
0:00:02.4]} 39. Qxf3 {[%clk 0:00:11.7]} 39... Qxh4 {[%clk 0:00:02.6]} 40. Qb7+
{[%clk 0:00:11.7]} 40... Kh6 {[%clk 0:00:03.1]} 41. Qxb6 {[%clk 0:00:12.6]}
41... Qg4+ {[%clk 0:00:03.6]} 42. Kf2 {[%clk 0:00:13.2]} 42... Qf4+ {[%clk
0:00:03.9]} 43. Ke2 {[%clk 0:00:13.7]} 43... Qh2+ {[%clk 0:00:03.2]} 44. Kd3
{[%clk 0:00:14.2]} 44... h4 {[%clk 0:00:03]} 45. Qe3+ {[%clk 0:00:15.1]} 45...
Kh5 {[%clk 0:00:02.9]} 46. c4 {[%clk 0:00:16]} 46... h3 {[%clk 0:00:02.1]} 47.
c5 {[%clk 0:00:16.9]} 47... Qc7 {[%clk 0:00:01.9]} 48. Qxh3+ {[%clk 0:00:15.8]}
48... Kg5 {[%clk 0:00:02.5]} 49. Kc4 {[%clk 0:00:16.7]} 49... Qf4+ {[%clk
0:00:02.2]} 50. Kd5 {[%clk 0:00:16.2]} 50... Qd2+ {[%clk 0:00:02.1]} 51. Kc6
{[%clk 0:00:16.3]} 51... Qxb2 {[%clk 0:00:02.4]} 52. Qg3+ {[%clk 0:00:16.4]}
52... Kh5 {[%clk 0:00:02.8]} 53. Qh3+ {[%clk 0:00:16.5]} 53... Kg5 {[%clk
0:00:03.3]} 54. Qe3+ {[%clk 0:00:17.3]} 54... Kh5 {[%clk 0:00:03.7]} 55. Kd6
{[%clk 0:00:17.6]} 55... Qb4 {[%clk 0:00:02.5]} 56. Qe5+ {[%clk 0:00:17.2]}
56... g5 {[%clk 0:00:02.3]} 57. Ke6 {[%clk 0:00:17.5]} 57... Qc4+ {[%clk
0:00:02]} 58. Kf6 {[%clk 0:00:18]} 58... Kh4 {[%clk 0:00:01.4]} 59. Qxg5+ {[%clk
0:00:17.8]} 59... Kh3 {[%clk 0:00:02]} 60. Qf5+ {[%clk 0:00:17.8]} 60... Kh2
{[%clk 0:00:02.1]} 61. Qe5+ {[%clk 0:00:18]} 61... Kh3 {[%clk 0:00:02.6]} 62.
Qe6+ {[%clk 0:00:18.3]} 62... Qxe6+ {[%clk 0:00:02.7]} 63. Kxe6 {[%clk
0:00:19.2]} 63... Kg4 {[%clk 0:00:03.3]} 64. c6 {[%clk 0:00:19.8]} 64... Kf4
{[%clk 0:00:04.2]} 65. c7 {[%clk 0:00:20.7]} 1-0

[Event "*** SCC Grand Prix: Titled Tuesday Blitz"]
[Site "Chess.com"]
[Date "2020.06.23"]
[Round "2"]
[White "Lupul_Cenusiu"]
[Black "ShimanovAlex"]
[Result "0-1"]
[WhiteElo "2556"]
[BlackElo "2869"]
[TimeControl "180+1"]
[EndTime "10:19:53 PDT"]
[Termination "ShimanovAlex won on time"]

1. d4 {[%clk 0:03:00.9]} 1... Nf6 {[%clk 0:02:59.4]} 2. c4 {[%clk 0:03:00.2]}
2... g6 {[%clk 0:02:59.1]} 3. Nc3 {[%clk 0:02:59.4]} 3... Bg7 {[%clk 0:02:59.3]}
4. Nf3 {[%clk 0:02:58.8]} 4... d6 {[%clk 0:02:58.6]} 5. g3 {[%clk 0:02:57.8]}
5... O-O {[%clk 0:02:53.9]} 6. Bg2 {[%clk 0:02:57.2]} 6... Nbd7 {[%clk
0:02:54.1]} 7. O-O {[%clk 0:02:56]} 7... e5 {[%clk 0:02:54.4]} 8. h3 {[%clk
0:02:54.3]} 8... Re8 {[%clk 0:02:53.7]} 9. e3 {[%clk 0:02:53]} 9... c6 {[%clk
0:02:45.8]} 10. Qb3 {[%clk 0:02:45.1]} 10... h6 {[%clk 0:02:41.7]} 11. Rd1
{[%clk 0:02:42.5]} 11... Qe7 {[%clk 0:02:41.7]} 12. Qa3 {[%clk 0:02:39.9]} 12...
Bf8 {[%clk 0:02:32.7]} 13. b3 {[%clk 0:02:32.9]} 13... Qd8 {[%clk 0:02:23.7]}
14. Qb2 {[%clk 0:02:28.5]} 14... a6 {[%clk 0:02:20.6]} 15. a4 {[%clk 0:02:22.6]}
15... Rb8 {[%clk 0:02:17.5]} 16. Bd2 {[%clk 0:02:13.8]} 16... e4 {[%clk
0:02:16]} 17. Nh2 {[%clk 0:02:12.5]} 17... d5 {[%clk 0:02:15]} 18. a5 {[%clk
0:02:08.8]} 18... h5 {[%clk 0:02:13.1]} 19. Na4 {[%clk 0:02:04.8]} 19... h4
{[%clk 0:02:08.9]} 20. g4 {[%clk 0:02:02.2]} 20... Bd6 {[%clk 0:02:08.2]} 21.
Rdc1 {[%clk 0:01:49.3]} 21... Nh7 {[%clk 0:02:05.6]} 22. cxd5 {[%clk 0:01:47.4]}
22... cxd5 {[%clk 0:02:05.7]} 23. Nc5 {[%clk 0:01:44]} 23... Ng5 {[%clk
0:02:01.9]} 24. Bb4 {[%clk 0:01:37.6]} 24... Nf6 {[%clk 0:01:56.5]} 25. Qe2
{[%clk 0:01:31]} 25... Nfh7 {[%clk 0:01:42.8]} 26. Rc2 {[%clk 0:01:22.5]} 26...
f5 {[%clk 0:01:42.5]} 27. Rac1 {[%clk 0:01:16.7]} 27... f4 {[%clk 0:01:38.9]}
28. exf4 {[%clk 0:01:14]} 28... Bxf4 {[%clk 0:01:38.9]} 29. Bd2 {[%clk
0:01:13.6]} 29... Bd6 {[%clk 0:01:35.5]} 30. Be3 {[%clk 0:01:10.9]} 30... Rf8
{[%clk 0:01:31.5]} 31. b4 {[%clk 0:01:07.9]} 31... Bd7 {[%clk 0:01:26.9]} 32.
Nxd7 {[%clk 0:01:00.8]} 32... Qxd7 {[%clk 0:01:27]} 33. b5 {[%clk 0:01:00.9]}
33... axb5 {[%clk 0:01:26.8]} 34. Rb1 {[%clk 0:00:59.7]} 34... b4 {[%clk
0:01:27.1]} 35. Qd2 {[%clk 0:00:47.2]} 35... Ne6 {[%clk 0:01:25.5]} 36. Nf1
{[%clk 0:00:43.6]} 36... Qe7 {[%clk 0:01:17.9]} 37. Rcc1 {[%clk 0:00:32]} 37...
Nhg5 {[%clk 0:01:09.5]} 38. Qa2 {[%clk 0:00:29.6]} 38... Nc7 {[%clk 0:00:58.7]}
39. Rxc7 {[%clk 0:00:22.8]} 39... Bxc7 {[%clk 0:00:54.6]} 40. Qxd5+ {[%clk
0:00:21.9]} 40... Nf7 {[%clk 0:00:55]} 41. Qxe4 {[%clk 0:00:18.9]} 41... Qd6
{[%clk 0:00:36.3]} 42. Qd5 {[%clk 0:00:16.8]} 42... Rfd8 {[%clk 0:00:30.4]} 43.
Qxd6 {[%clk 0:00:16.5]} 43... Bxd6 {[%clk 0:00:31.1]} 44. Nd2 {[%clk 0:00:13.7]}
44... Ra8 {[%clk 0:00:30.8]} 45. Nb3 {[%clk 0:00:13.5]} 45... Rd7 {[%clk
0:00:29.4]} 46. Be4 {[%clk 0:00:12.4]} 46... Kg7 {[%clk 0:00:29.2]} 47. Bd3
{[%clk 0:00:11.7]} 47... Rc8 {[%clk 0:00:28.9]} 48. Bb5 {[%clk 0:00:11.1]} 48...
Re7 {[%clk 0:00:28]} 49. Kf1 {[%clk 0:00:10.2]} 49... Rc3 {[%clk 0:00:27.6]} 50.
Be2 {[%clk 0:00:09.2]} 50... Rec7 {[%clk 0:00:24]} 51. Bd2 {[%clk 0:00:08.9]}
51... Rxh3 {[%clk 0:00:22.1]} 52. Kg2 {[%clk 0:00:07.7]} 52... Rhc3 {[%clk
0:00:19.3]} 53. Bxc3 {[%clk 0:00:06.9]} 53... bxc3 {[%clk 0:00:18.9]} 54. Bd3
{[%clk 0:00:05.8]} 54... Ng5 {[%clk 0:00:18.9]} 55. Bc2 {[%clk 0:00:04.9]} 55...
h3+ {[%clk 0:00:18.8]} 56. Kh1 {[%clk 0:00:05]} 56... Ne6 {[%clk 0:00:16.8]} 57.
Re1 {[%clk 0:00:03.9]} 57... Nf4 {[%clk 0:00:17.2]} 58. Re4 {[%clk 0:00:03.5]}
58... g5 {[%clk 0:00:17]} 59. Kh2 {[%clk 0:00:02.4]} 59... Kf6 {[%clk
0:00:15.1]} 60. Re8 {[%clk 0:00:01.9]} 60... Kf7 {[%clk 0:00:13.5]} 0-1

[Event "*** SCC Grand Prix: Titled Tuesday Blitz"]
[Site "Chess.com"]
[Date "2020.06.23"]
[Round "2"]
[White "Bulldog167"]
[Black "sergeikim"]
[Result "1/2-1/2"]
[WhiteElo "2772"]
[BlackElo "2523"]
[TimeControl "180+1"]
[EndTime "10:19:53 PDT"]
[Termination "Game drawn by stalemate"]

1. d4 {[%clk 0:03:00.9]} 1... Nf6 {[%clk 0:02:58.8]} 2. c4 {[%clk 0:03:01.4]}
2... g6 {[%clk 0:02:58.3]} 3. Nc3 {[%clk 0:03:01.7]} 3... Bg7 {[%clk 0:02:58.1]}
4. e4 {[%clk 0:03:02.2]} 4... d6 {[%clk 0:02:58]} 5. h3 {[%clk 0:03:02.6]} 5...
O-O {[%clk 0:02:57.4]} 6. Be3 {[%clk 0:03:03]} 6... e5 {[%clk 0:02:56.9]} 7. d5
{[%clk 0:03:03.3]} 7... a5 {[%clk 0:02:56.5]} 8. g4 {[%clk 0:03:03.5]} 8... Na6
{[%clk 0:02:56.1]} 9. Nge2 {[%clk 0:03:04.1]} 9... Nc5 {[%clk 0:02:55.8]} 10.
Ng3 {[%clk 0:03:04.4]} 10... Bd7 {[%clk 0:02:55.6]} 11. Qd2 {[%clk 0:03:04.8]}
11... Rc8 {[%clk 0:02:55.4]} 12. Be2 {[%clk 0:03:01.6]} 12... c6 {[%clk
0:02:55]} 13. f3 {[%clk 0:02:56.4]} 13... cxd5 {[%clk 0:02:51.5]} 14. cxd5
{[%clk 0:02:57.3]} 14... Ne8 {[%clk 0:02:49.2]} 15. h4 {[%clk 0:02:56.3]} 15...
b5 {[%clk 0:02:47.6]} 16. Bxb5 {[%clk 0:02:51.9]} 16... Bxb5 {[%clk 0:02:45.8]}
17. Nxb5 {[%clk 0:02:52.8]} 17... a4 {[%clk 0:02:46.2]} 18. Rc1 {[%clk
0:02:47.2]} 18... Qb6 {[%clk 0:02:40.2]} 19. Na3 {[%clk 0:02:40.1]} 19... Qa6
{[%clk 0:02:35]} 20. Bxc5 {[%clk 0:02:40.3]} 20... Rxc5 {[%clk 0:02:33.5]} 21.
Rxc5 {[%clk 0:02:40.3]} 21... dxc5 {[%clk 0:02:33.4]} 22. Qe2 {[%clk 0:02:35.6]}
22... Qf6 {[%clk 0:02:24.4]} 23. Nc4 {[%clk 0:02:30.2]} 23... h6 {[%clk
0:02:10.4]} 24. Kf2 {[%clk 0:02:25.4]} 24... Nc7 {[%clk 0:02:04.5]} 25. Ne3
{[%clk 0:02:01.6]} 25... Rb8 {[%clk 0:02:00.7]} 26. g5 {[%clk 0:01:58.9]} 26...
hxg5 {[%clk 0:01:54.2]} 27. h5 {[%clk 0:01:57.1]} 27... Nb5 {[%clk 0:01:52.5]}
28. Ng4 {[%clk 0:01:50.9]} 28... Qb6 {[%clk 0:01:48.3]} 29. hxg6 {[%clk
0:01:49.2]} 29... fxg6 {[%clk 0:01:47]} 30. Kg2 {[%clk 0:00:51.3]} 30... Nd4
{[%clk 0:01:43.8]} 31. Qf2 {[%clk 0:00:50.8]} 31... Rf8 {[%clk 0:01:30.2]} 32.
Nh2 {[%clk 0:00:44.4]} 32... g4 {[%clk 0:01:30]} 33. Nxg4 {[%clk 0:00:39.6]}
33... Nxf3 {[%clk 0:01:13.6]} 34. Qe2 {[%clk 0:00:31.5]} 34... Nd4 {[%clk
0:01:07.6]} 35. Qd2 {[%clk 0:00:31]} 35... Nf3 {[%clk 0:01:01.5]} 36. Qe2 {[%clk
0:00:30]} 36... Nd4 {[%clk 0:01:00.9]} 37. Qd2 {[%clk 0:00:30.2]} 37... Nf3
{[%clk 0:01:00.2]} 38. Qc1 {[%clk 0:00:26.6]} 38... Qb4 {[%clk 0:00:39.7]} 39.
Nh6+ {[%clk 0:00:20.4]} 39... Bxh6 {[%clk 0:00:36.3]} 40. Qxh6 {[%clk
0:00:21.3]} 40... Qxb2+ {[%clk 0:00:23.4]} 41. Kh3 {[%clk 0:00:21.7]} 41... Qb6
{[%clk 0:00:18.2]} 42. Nf5 {[%clk 0:00:10.7]} 42... Qf6 {[%clk 0:00:14.4]} 43.
Kg3 {[%clk 0:00:09]} 43... Ng5 {[%clk 0:00:08.1]} 44. Rh4 {[%clk 0:00:02.7]}
44... Nxe4+ {[%clk 0:00:05.7]} 45. Rxe4 {[%clk 0:00:02.6]} 45... gxf5 {[%clk
0:00:04.6]} 46. Qxf6 {[%clk 0:00:02.3]} 46... Rxf6 {[%clk 0:00:04.6]} 47. Rxe5
{[%clk 0:00:03.2]} 47... Rd6 {[%clk 0:00:04.5]} 48. Kf4 {[%clk 0:00:03.3]} 48...
c4 {[%clk 0:00:04.8]} 49. Re2 {[%clk 0:00:01.4]} 49... c3 {[%clk 0:00:04.5]} 50.
Rg2+ {[%clk 0:00:02.3]} 50... Kf7 {[%clk 0:00:03.7]} 51. Ke5 {[%clk 0:00:03.2]}
51... Rd8 {[%clk 0:00:02.9]} 52. Rc2 {[%clk 0:00:03.3]} 52... Rc8 {[%clk
0:00:03.2]} 53. Kxf5 {[%clk 0:00:03.9]} 53... Ke7 {[%clk 0:00:03.4]} 54. Ke5
{[%clk 0:00:04.8]} 54... Kd7 {[%clk 0:00:03.9]} 55. Kd4 {[%clk 0:00:05]} 55...
Kd6 {[%clk 0:00:03.7]} 56. a3 {[%clk 0:00:05.5]} 56... Rc5 {[%clk 0:00:03.4]}
57. Rxc3 {[%clk 0:00:05.6]} 57... Rxc3 {[%clk 0:00:03.9]} 58. Kxc3 {[%clk
0:00:06.5]} 58... Kxd5 {[%clk 0:00:04.4]} 59. Kb4 {[%clk 0:00:07.4]} 59... Kc6
{[%clk 0:00:05.1]} 60. Kxa4 {[%clk 0:00:08.3]} 60... Kb6 {[%clk 0:00:06]} 61.
Kb4 {[%clk 0:00:09.2]} 61... Ka6 {[%clk 0:00:06.4]} 62. a4 {[%clk 0:00:10.1]}
62... Kb6 {[%clk 0:00:07.2]} 63. a5+ {[%clk 0:00:11]} 63... Ka6 {[%clk
0:00:07.9]} 64. Ka4 {[%clk 0:00:11.9]} 64... Ka7 {[%clk 0:00:08.7]} 65. Kb5
{[%clk 0:00:12.8]} 65... Kb7 {[%clk 0:00:09.6]} 66. a6+ {[%clk 0:00:13.7]} 66...
Ka7 {[%clk 0:00:10.3]} 67. Ka5 {[%clk 0:00:14.6]} 67... Ka8 {[%clk 0:00:11.1]}
68. Kb6 {[%clk 0:00:15.5]} 68... Kb8 {[%clk 0:00:11.8]} 69. a7+ {[%clk
0:00:16.4]} 69... Ka8 {[%clk 0:00:12.7]} 70. Ka6 {[%clk 0:00:16.8]} 1/2-1/2

[Event "*** SCC Grand Prix: Titled Tuesday Blitz"]
[Site "Chess.com"]
[Date "2020.06.23"]
[Round "2"]
[White "ChessWarrior7197"]
[Black "kingmonkey2006"]
[Result "1-0"]
[WhiteElo "2920"]
[BlackElo "2574"]
[TimeControl "180+1"]
[EndTime "10:20:10 PDT"]
[Termination "ChessWarrior7197 won by resignation"]

1. e4 {[%clk 0:03:00.9]} 1... c5 {[%clk 0:02:58.5]} 2. Nf3 {[%clk 0:03:00.6]}
2... d6 {[%clk 0:02:59.3]} 3. d4 {[%clk 0:02:59.8]} 3... cxd4 {[%clk 0:03:00.2]}
4. Nxd4 {[%clk 0:03:00.7]} 4... Nf6 {[%clk 0:03:00.8]} 5. Nc3 {[%clk 0:03:01.2]}
5... a6 {[%clk 0:03:01.6]} 6. Bd3 {[%clk 0:03:00.8]} 6... e5 {[%clk 0:03:01.7]}
7. Nde2 {[%clk 0:03:00.7]} 7... Be7 {[%clk 0:03:00]} 8. O-O {[%clk 0:03:00.8]}
8... O-O {[%clk 0:03:00.4]} 9. Ng3 {[%clk 0:03:01.4]} 9... b5 {[%clk 0:02:56.1]}
10. Be3 {[%clk 0:02:52.2]} 10... Bb7 {[%clk 0:02:46.6]} 11. Nf5 {[%clk
0:02:49.7]} 11... b4 {[%clk 0:02:44.8]} 12. Nd5 {[%clk 0:02:48.9]} 12... Nxd5
{[%clk 0:02:44.9]} 13. exd5 {[%clk 0:02:49.3]} 13... Bf6 {[%clk 0:02:20]} 14. f4
{[%clk 0:02:17.3]} 14... g6 {[%clk 0:02:07.2]} 15. Nh6+ {[%clk 0:02:16.5]} 15...
Kg7 {[%clk 0:02:08.1]} 16. f5 {[%clk 0:02:04.4]} 16... Bg5 {[%clk 0:01:54.8]}
17. Qd2 {[%clk 0:01:51.9]} 17... Bxe3+ {[%clk 0:01:49.9]} 18. Qxe3 {[%clk
0:01:49]} 18... Nd7 {[%clk 0:01:50.8]} 19. Kh1 {[%clk 0:01:30.7]} 19... Qh4
{[%clk 0:01:43.8]} 20. f6+ {[%clk 0:01:15.1]} 20... Nxf6 {[%clk 0:01:38.2]} 21.
Qb6 {[%clk 0:01:06]} 21... Bxd5 {[%clk 0:01:09.7]} 22. Qxd6 {[%clk 0:01:05.2]}
22... Rfe8 {[%clk 0:00:51.8]} 23. Rae1 {[%clk 0:00:39.8]} 23... Re6 {[%clk
0:00:46.9]} 24. Qc7 {[%clk 0:00:32.7]} 24... Qxh6 {[%clk 0:00:39.8]} 25. Rxe5
{[%clk 0:00:32.5]} 25... Rae8 {[%clk 0:00:24.4]} 26. Rxd5 {[%clk 0:00:31.6]}
26... Nxd5 {[%clk 0:00:25.3]} 27. Qxf7+ {[%clk 0:00:32.5]} 27... Kh8 {[%clk
0:00:24.5]} 28. Bc4 {[%clk 0:00:33.4]} 28... R8e7 {[%clk 0:00:15.2]} 29. Qf2
{[%clk 0:00:27.7]} 29... Nf6 {[%clk 0:00:15.6]} 30. Bxe6 {[%clk 0:00:27.1]}
30... Rxe6 {[%clk 0:00:16.5]} 31. Qd4 {[%clk 0:00:27.7]} 31... Qf8 {[%clk
0:00:15.5]} 32. g4 {[%clk 0:00:24.1]} 32... g5 {[%clk 0:00:12.6]} 33. Rf5 {[%clk
0:00:22.8]} 33... Qa8+ {[%clk 0:00:12.2]} 34. Kg1 {[%clk 0:00:22.8]} 34... Kg7
{[%clk 0:00:07.9]} 35. Rxg5+ {[%clk 0:00:21.1]} 35... Kf7 {[%clk 0:00:08.1]} 36.
Rf5 {[%clk 0:00:20.4]} 36... h6 {[%clk 0:00:08.8]} 37. Qd7+ {[%clk 0:00:19.8]}
37... Re7 {[%clk 0:00:07.9]} 38. Qd6 {[%clk 0:00:20.2]} 38... Qa7+ {[%clk
0:00:05.6]} 39. Kg2 {[%clk 0:00:19.8]} 39... Re2+ {[%clk 0:00:05.5]} 40. Kf1
{[%clk 0:00:20]} 40... Re6 {[%clk 0:00:05]} 41. Qf4 {[%clk 0:00:16.4]} 41... Qe3
{[%clk 0:00:04.7]} 42. Qxe3 {[%clk 0:00:15.7]} 42... Rxe3 {[%clk 0:00:05.6]} 43.
Rf4 {[%clk 0:00:16.2]} 43... Re4 {[%clk 0:00:05.4]} 44. Rxe4 {[%clk 0:00:14.2]}
44... Nxe4 {[%clk 0:00:06.3]} 45. Ke2 {[%clk 0:00:15.1]} 45... Nf6 {[%clk
0:00:06.5]} 46. Kf3 {[%clk 0:00:14.9]} 46... Ke6 {[%clk 0:00:05.3]} 47. h4
{[%clk 0:00:14.4]} 47... Nh7 {[%clk 0:00:05]} 48. Kf4 {[%clk 0:00:14.2]} 48...
Kd5 {[%clk 0:00:04.1]} 49. Kf5 {[%clk 0:00:14.1]} 49... Kd4 {[%clk 0:00:03.3]}
50. Kg6 {[%clk 0:00:14.6]} 50... Nf8+ {[%clk 0:00:04]} 51. Kxh6 {[%clk
0:00:14.8]} 51... Ke3 {[%clk 0:00:04.6]} 52. h5 {[%clk 0:00:14.4]} 52... Kd2
{[%clk 0:00:05]} 53. Kg7 {[%clk 0:00:14.2]} 53... Ne6+ {[%clk 0:00:05.2]} 54.
Kf6 {[%clk 0:00:14.7]} 54... Nf8 {[%clk 0:00:05.6]} 55. g5 {[%clk 0:00:13.2]}
55... Kxc2 {[%clk 0:00:05.7]} 56. g6 {[%clk 0:00:14.1]} 56... Kxb2 {[%clk
0:00:02.5]} 57. g7 {[%clk 0:00:15]} 57... Nh7+ {[%clk 0:00:02.4]} 58. Kg6 {[%clk
0:00:15]} 58... Kxa2 {[%clk 0:00:02.1]} 59. g8=Q+ {[%clk 0:00:15.1]} 59... b3
{[%clk 0:00:03]} 60. Kxh7 {[%clk 0:00:15.5]} 1-0